bitfinex-derivatives/quotes_SOLF0:USTF0_20251109
["timestamp","ask_amount","ask_price","bid_price","bid_amount"]
[1762700884311,5.76589233,161.15,161.05,2.97]
[1762700884910,8.83589233,161.16,161.05,2.97]
[1762700885210,0.0475179,161.12,161.09,3.01176765]
[1762700887310,43.06589233,161.2,161.1,2.97]
[1762700887511,37.3,161.2,161.1,2.97]
[1762700888311,37.3,161.2,161.06,7.6134588]
[1762700888312,37.3,161.2,161.14,2.97]
[1762700888512,5.76589233,161.25,161.16,2.97]
[1762700888712,3.07,161.25,161.19,0.04753307]
[1762700890022,3.07,161.23,161.19,0.04753307]
[1762700890222,3.07,161.23,161.19,0.04524526]
[1762700890615,8.83589233,161.23,161.19,0.04524526]
[1762700890917,8.83589233,161.23,161.12,2.97]
[1762700890918,8.83589233,161.21,161.05,2.97]
[1762700891121,3.07,161.17,161.05,2.97]
[1762700891421,3.07,161.16,161.05,2.97]
[1762700891622,3.07,161.15,161.05,2.97]
[1762700891920,3.07,161.11,161.08,0.04194435]
[1762700892120,3.11382951,161.11,161.08,0.04234179]
[1762700897929,3.11382951,161.11,160.99,2.97]
[1762700897930,3.07,161.1,160.99,2.97]
[1762700898224,3.07,161.09,160.99,2.97]
[1762700898825,5.76589233,161.1,161.02,0.04282538]
[1762700898826,3.10950974,161.06,161.02,0.04282538]
[1762700901018,3.10950974,161.06,161.02,3.01282538]
[1762700901221,0.03950974,161.06,161.02,3.01282538]
[1762700901419,3.10950974,161.06,161.02,3.01282538]
[1762700901623,3.10950974,161.06,161.02,0.04282538]
[1762700903231,0.03950974,161.06,161.02,3.01282538]
[1762700905027,5.76589233,161.15,161.03,2.97]
[1762700905222,3.07,161.16,161.04,2.97]
[1762700906026,0.0445144,161.12,161.08,0.04675662]
[1762700906226,0.0445144,161.12,161.09,2.97]
[1762700910035,0.0445144,161.12,161.08,0.04675662]
[1762700910036,3.1145144,161.12,161.08,0.04675662]
[1762700912221,3.08,161.11,161.0,3.04]
[1762700913237,0.04177289,161.07,161.04,0.04361676]
[1762700913429,3.08,161.06,161.04,0.04361676]
[1762700914135,0.04177289,161.07,161.04,3.08361676]
[1762700914734,3.12177289,161.07,161.04,0.04361676]
[1762700916934,0.04177289,161.07,161.04,3.08361676]
[1762700917536,0.04177289,161.07,161.04,0.04361676]
[1762700918030,3.12177289,161.07,161.04,0.04361676]
[1762700918940,0.04177289,161.07,161.04,3.08361676]
[1762700922442,64.68,161.14,161.05,3.04]
[1762700922839,67.76,161.14,161.05,3.04]
[1762700923244,0.0408926,161.11,161.09,3.04]
[1762700923444,0.045017,161.12,161.09,3.04]
[1762700926645,3.035017,161.12,161.08,2.9609042]
[1762700927039,0.045017,161.12,161.08,2.9609042]
[1762700930451,0.045017,161.12,161.08,0.0409042]
[1762700930452,3.035017,161.12,161.08,0.0409042]
[1762700930964,0.045017,161.12,161.08,2.9609042]
[1762700937059,2.99,161.21,161.08,2.9609042]
[1762700937259,2.99,161.21,161.08,2.92]
[1762700938058,2.99,161.21,161.13,0.04755296]
[1762700938364,6.92,161.22,161.14,2.92]
[1762700938561,6.92,161.22,161.16,0.0442235]
[1762700939059,6.92,161.22,161.16,2.9642235]
[1762700939460,2.99,161.21,161.16,0.0442235]
[1762700939863,6.92,161.22,161.16,2.9642235]
[1762700941261,9.91,161.22,161.16,2.9642235]
[1762700941961,3.01,161.21,161.16,0.0442235]
[1762700942364,3.01,161.21,161.16,3.0742235]
[1762700942766,6.92,161.22,161.16,3.0742235]
[1762700942964,3.01,161.25,161.16,3.0742235]
[1762700943559,64.56,161.28,161.16,3.0742235]
[1762700943768,64.56,161.28,161.21,3.03]
[1762700943966,67.57,161.28,161.23,3.07033213]
[1762700944274,67.57,161.28,161.24,0.04711628]
[1762700944672,67.57,161.28,161.24,3.07711628]
[1762700946070,3.01,161.27,161.24,0.04711628]
[1762700946368,64.56,161.28,161.24,3.07711628]
[1762700946567,67.57,161.28,161.24,3.07711628]
[1762700947061,3.01,161.31,161.24,3.07711628]
[1762700947265,3.01,161.31,161.26,3.07173662]
[1762700947572,3.01,161.31,161.27,0.04365179]
[1762700949473,3.01,161.34,161.27,3.07365179]
[1762700950665,3.01,161.36,161.27,3.07365179]
[1762700950877,3.01,161.36,161.3,0.04346277]
[1762700952870,3.01,161.36,161.16,18.18693763]
[1762700953067,3.01,161.36,161.17,3.03]
[1762700953262,3.01,161.35,161.17,3.03]
[1762700953976,3.01,161.27,161.24,0.0408972]
[1762700954272,4.29499496,161.27,161.14,270.84818985]
[1762700954575,3.01,161.26,161.13,3.03]
[1762700954771,3.01,161.25,161.01,3.03]
[1762700954971,3.01,161.23,161.01,3.03]
[1762700955171,3.05172296,161.14,161.1,0.04539487]
[1762700955473,3.0555528,161.14,161.1,0.04775082]
[1762700956872,0.0455528,161.14,161.1,3.07775082]
[1762700957862,3.0555528,161.14,161.1,0.04775082]
[1762700965068,3.0555528,161.14,160.98,3.03]
[1762700965069,3.01,161.13,160.98,3.03]
[1762700966078,3.05223781,161.07,161.04,0.0475415]
[1762700966278,0.04504621,161.07,161.04,0.04370722]
[1762700966574,0.04504621,161.07,161.04,3.07370722]
[1762700967570,0.04504621,161.07,161.04,0.04370722]
[1762700968681,0.04504621,161.07,161.04,3.07370722]
[1762700972879,2.98504621,161.07,161.04,0.04370722]
[1762700979980,0.04504621,161.07,161.04,0.04370722]
[1762700980387,0.04504621,161.07,161.04,3.03370722]
[1762700983085,0.04504621,161.07,161.05,2.99]
[1762700983483,34.24,161.14,161.06,2.99]
[1762700983484,31.3,161.14,161.06,2.99]
[1762700984494,0.0469752,161.12,161.08,3.03615174]
[1762700984692,0.04172175,161.12,161.08,3.03066944]
[1762700990786,3.18172175,161.12,161.08,0.04066944]
[1762700996187,0.04172175,161.12,161.08,2.99066944]
[1762701000001,0.04172175,161.12,161.09,2.95]
[1762701001692,3.18172175,161.12,161.08,2.99066944]
[1762701001896,0.04172175,161.12,161.08,2.99066944]
[1762701004197,2.94172175,161.12,161.08,0.04066944]
[1762701004400,2.94172175,161.12,161.08,3.24066944]
[1762701005297,0.04172175,161.12,161.08,3.24066944]
[1762701005504,2.94172175,161.12,161.08,3.24066944]
[1762701006196,2.9,161.11,161.08,0.04066944]
[1762701006505,0.04172175,161.12,161.08,3.24066944]
[1762701007506,0.04172175,161.12,161.1,3.2]
[1762701010404,2.9,161.18,161.11,3.2]
[1762701010405,5.5847,161.18,161.11,3.2]
[1762701011203,29.68,161.23,161.13,3.2]
[1762701011398,0.04293483,161.2,161.17,3.2]
[1762701011707,2.9,161.29,161.17,3.24775258]
[1762701011904,2.9,161.29,161.17,3.2]
[1762701012606,2.9,161.29,161.19,3.2]
[1762701012806,2.92560256,161.26,161.22,0.04651306]
[1762701013007,0.02560256,161.26,161.22,3.24651306]
[1762701015802,0.02560256,161.26,161.23,3.2]
[1762701017513,2.9,161.33,161.23,3.2]
[1762701017700,2.9,161.36,161.26,3.2]
[1762701018502,2.9,161.36,161.29,0.04511074]
[1762701018702,2.9,161.36,161.29,3.24511074]
[1762701019211,2.9,161.35,161.29,3.24511074]
[1762701019820,2.9,161.32,161.29,0.04511074]
[1762701020414,2.9,161.32,161.12,7.6134588]
[1762701020415,2.9,161.3,161.14,3.2]
[1762701020610,2.9,161.3,161.15,3.2]
[1762701021108,2.9,161.26,161.15,3.2]
[1762701021308,0.04511074,161.22,161.19,0.04023915]
[1762701021707,2.94511074,161.22,161.19,0.04023915]
[1762701022209,0.04511074,161.22,161.19,0.04023915]
[1762701022811,2.94511074,161.22,161.19,0.04023915]
[1762701023205,0.04511074,161.22,161.19,0.04023915]
[1762701023713,0.04511074,161.22,161.19,3.24023915]
[1762701024010,0.04511074,161.22,161.19,0.04023915]
[1762701025200,0.04511074,161.22,161.19,3.24023915]
[1762701026510,2.94511074,161.22,161.19,0.04023915]
[1762701028111,0.04511074,161.22,161.19,3.24023915]
[1762701028307,2.94511074,161.22,161.19,0.04023915]
[1762701030111,2.9,161.2,161.19,0.04023915]
[1762701032912,0.04511074,161.22,161.11,3.09]
[1762701032913,8.6342,161.19,161.11,3.09]
[1762701033217,3.05,161.19,161.11,3.09]
[1762701033418,8.6323,161.25,161.12,3.09]
[1762701033717,3.05,161.25,161.12,3.09]
[1762701033916,7.60496332,161.32,161.1,263.46575036]
[1762701033917,0.04639125,161.2,161.18,3.09]
[1762701034109,0.0394387,161.21,161.18,3.09]
[1762701034311,8.78453408,161.36,161.26,3.09]
[1762701034615,3.05,161.35,161.26,3.09]
[1762701035118,3.05,161.35,161.22,3.09]
[1762701035312,3.05,161.29,161.27,0.03947288]
[1762701035505,0.04591119,161.3,161.26,3.13688318]
[1762701035709,0.04338382,161.3,161.26,3.13415588]
[1762701040018,1.07888577,161.41,161.26,3.13415588]
[1762701040222,3.05,161.44,161.36,3.09]
[1762701040422,3.05,161.42,161.32,3.09]
[1762701041026,3.05,161.42,161.35,0.04199712]
[1762701041220,3.05,161.4,161.35,0.04199712]
[1762701041521,3.05,161.4,161.36,0.0448572]
[1762701041725,3.05,161.4,161.36,0.04286345]
[1762701042419,5.73831501,161.45,161.36,0.04286345]
[1762701042613,3.05,161.38,161.36,0.04286345]
[1762701042815,3.05,161.38,161.35,0.04561716]
[1762701043020,3.05,161.38,161.35,0.04312876]
[1762701046125,24.37831501,161.44,161.35,0.04312876]
[1762701046126,3.05,161.44,161.35,3.13312876]
[1762701046733,3.05,161.44,161.35,0.04312876]
[1762701047227,3.2,161.41,161.35,0.04312876]
[1762701047429,3.2,161.41,161.36,0.04778189]
[1762701047629,3.2,161.38,161.36,0.04778189]
[1762701048727,8.7779,161.38,161.36,0.04778189]
[1762701048931,3.2,161.37,161.27,3.05]
[1762701049526,8.7783,161.37,161.27,3.05]
[1762701049939,0.04410468,161.34,161.3,3.0970744]
[1762701051027,5.73831501,161.41,161.3,3.0970744]
[1762701051231,3.2,161.44,161.3,3.05]
[1762701051629,3.2,161.44,161.34,3.05]
[1762701052227,3.2,161.44,161.37,0.04431846]
[1762701053235,5.5762,161.43,161.37,0.04431846]
[1762701053728,8.7766,161.42,161.37,0.04431846]
[1762701053932,3.2,161.41,161.38,0.04266595]
[1762701054832,3.2,161.4,161.38,0.04266595]
[1762701055637,3.2,161.46,161.3,3.05]
[1762701056030,8.7754,161.45,161.36,3.05]
[1762701056336,3.2,161.45,161.36,3.05]
[1762701056537,11.31131501,161.52,161.41,3.05]
[1762701056838,3.2,161.54,161.41,3.05]
[1762701057130,3.2,161.49,161.41,3.05]
[1762701057535,5.73831501,161.54,161.43,0.03985451]
[1762701057740,3.2,161.54,161.44,3.05]
[1762701058043,3.2,161.54,161.47,0.04541733]
[1762701059436,8.7724,161.54,161.47,0.04541733]
[1762701061236,8.7727,161.53,161.47,0.04541733]
[1762701061440,3.2,161.52,161.48,0.04324447]
[1762701062135,8.6132,161.51,161.48,0.04324447]
[1762701062337,3.04,161.5,161.48,0.04610534]
[1762701062937,3.04,161.49,161.48,0.04610534]
[1762701063239,3.04,161.56,161.48,0.04610534]
[1762701063436,3.04,161.53,161.48,0.04610534]
[1762701063634,3.04,161.58,161.5,3.15]
[1762701063839,3.04,161.58,161.52,0.04765858]
[1762701064044,3.04,161.57,161.52,3.19765858]
[1762701064344,3.04,161.57,161.53,0.04517789]
[1762701065246,3.04,161.56,161.53,0.04517789]
[1762701065938,3.04,161.57,161.53,0.04517789]
[1762701066942,3.04,161.57,161.53,3.19517789]
[1762701067259,3.04,161.57,161.53,0.04517789]
[1762701067854,8.6113,161.57,161.53,0.04517789]
[1762701068060,3.04,161.56,161.53,0.04517789]
[1762701068248,3.04,161.53,161.45,3.15]
[1762701068448,3.04,161.53,161.47,0.04556293]
[1762701068749,3.04,161.5,161.48,0.04368826]
[1762701068956,3.04,161.5,161.47,0.04386006]
[1762701069456,3.04,161.48,161.47,0.04386006]
[1762701069656,3.04,161.48,161.46,0.04265335]
[1762701069848,3.04,161.48,161.45,0.0405024]
[1762701070050,86.6562,161.59,161.45,0.0405024]
[1762701070051,3.04,161.54,161.45,3.19677793]
[1762701070257,3.04,161.54,161.48,0.04748806]
[1762701071051,8.613,161.52,161.48,0.04748806]
[1762701071359,8.613,161.52,161.48,0.04742383]
[1762701071549,5.5723,161.54,161.48,3.19742383]
[1762701071854,3.04,161.53,161.49,0.04525858]
[1762701072352,5.5716,161.56,161.49,3.19525858]
[1762701072556,8.6116,161.56,161.51,0.04010447]
[1762701072853,3.04,161.55,161.51,0.04010447]
[1762701073652,5.5709,161.58,161.51,3.19010447]
[1762701073860,3.04,161.57,161.53,0.04589852]
[1762701074957,5.73831501,161.66,161.55,3.15]
[1762701075262,3.04,161.64,161.59,0.04345705]
[1762701075462,3.04,161.64,161.46,3.15]
[1762701075753,3.04,161.64,161.53,3.1903106]
[1762701075961,3.04,161.64,161.57,0.04514122]
[1762701076654,5.5697,161.61,161.57,0.04514122]
[1762701076857,3.04,161.6,161.57,0.04514122]
[1762701077655,3.04,161.67,161.57,0.04514122]
[1762701077852,3.04,161.67,161.6,0.04669364]
[1762701078056,3.04,161.65,161.6,0.04669364]
[1762701078258,3.04,161.65,161.61,0.04606351]
[1762701078462,3.04,161.65,161.51,3.15]
[1762701078652,5.5701,161.6,161.51,3.15]
[1762701078851,8.6101,161.6,161.51,3.15]
[1762701079657,0.04247406,161.57,161.54,0.04480239]
[1762701079849,3.08247406,161.57,161.54,0.04480239]
[1762701081250,8.65387406,161.57,161.54,0.04480239]
[1762701081450,3.04,161.56,161.54,0.04480239]
[1762701081646,3.04,161.56,161.47,3.15]
[1762701081858,5.73831501,161.63,161.43,3.15]
[1762701081859,3.04,161.53,161.43,3.15]
[1762701082865,0.04413995,161.5,161.46,0.04133871]
[1762701083059,3.08413995,161.5,161.46,0.04133871]
[1762701083558,0.04413995,161.5,161.46,3.19133871]
[1762701083960,3.08413995,161.5,161.46,0.04133871]
[1762701084167,3.04,161.48,161.46,0.04133871]
[1762701084865,3.04,161.47,161.38,3.15]
[1762701085261,8.6148,161.47,161.38,3.15]
[1762701085765,3.04,161.46,161.38,3.15]
[1762701085968,0.04488975,161.44,161.41,0.04259609]
[1762701087652,0.04488975,161.44,161.41,3.19259609]
[1762701091756,5.5729,161.52,161.43,3.15]
[1762701092064,5.73831501,161.63,161.46,3.18]
[1762701092264,3.17,161.68,161.58,3.18]
[1762701092771,0.04476131,161.65,161.61,3.22191704]
[1762701092964,0.04039973,161.65,161.61,3.22280488]
[1762701094067,3.21039973,161.65,161.61,0.04280488]
[1762701098277,0.04039973,161.65,161.61,3.22280488]
[1762701101773,3.21039973,161.65,161.61,0.04280488]
[1762701101975,0.04039973,161.65,161.61,3.22280488]
[1762701102377,3.21039973,161.65,161.61,0.04280488]
[1762701102777,0.04039973,161.65,161.61,3.22280488]
[1762701103282,3.21039973,161.65,161.61,0.04280488]
[1762701104371,0.04039973,161.65,161.61,3.22280488]
[1762701104580,3.21039973,161.65,161.61,0.04280488]
[1762701104882,0.04039973,161.65,161.63,3.18]
[1762701105077,5.73831501,161.79,161.63,3.18]
[1762701105278,3.17,161.78,161.63,3.18]
[1762701105680,3.17,161.77,161.65,3.18]
[1762701106081,0.0455037,161.73,161.69,0.04147366]
[1762701106479,2.9355037,161.73,161.69,0.04147366]
[1762701107284,2.89,161.7,161.61,2.98]
[1762701108277,5.5672,161.69,161.64,0.04687401]
[1762701108484,0.04628877,161.67,161.64,0.04687401]
[1762701109888,0.04628877,161.67,161.64,3.02687401]
[1762701110781,0.04628877,161.67,161.64,0.04687401]
[1762701111789,2.93628877,161.67,161.64,0.04687401]
[1762701112989,8.50408877,161.67,161.64,0.04687401]
[1762701114083,2.93628877,161.67,161.64,0.04687401]
[1762701115383,2.89,161.66,161.64,0.04687401]
[1762701116991,8.4582,161.66,161.57,2.98]
[1762701117191,86.5533,161.78,161.54,0.24554]
[1762701117192,2.89,161.64,161.54,0.24554]
[1762701117694,2.89,161.6,161.54,0.24554]
[1762701118087,2.89,161.58,161.55,0.04725538]
[1762701118288,2.89,161.58,161.55,0.0454465]
[1762701118990,8.4615,161.56,161.55,0.0454465]
[1762701119992,2.89,161.56,161.55,0.0454465]
[1762701120395,2.89,161.56,161.48,2.98]
[1762701120598,5.5718,161.55,161.48,2.98]
[1762701120798,2.89,161.56,161.48,2.98]
[1762701120990,2.89,161.6,161.48,2.98]
[1762701121295,11.137,161.65,161.48,2.98]
[1762701121296,8.461,161.58,161.48,2.98]
[1762701121499,0.03962587,161.55,161.51,3.02485615]
[1762701121687,0.04468391,161.55,161.51,3.02485615]
[1762701121888,2.95468391,161.55,161.51,0.04485615]
[1762701123394,0.04468391,161.55,161.51,3.22485615]
[1762701123994,2.95468391,161.55,161.51,3.22485615]
[1762701124197,2.95468391,161.55,161.51,0.04485615]
[1762701126004,2.91,161.53,161.51,0.04485615]
[1762701126698,2.95468391,161.55,161.51,0.04485615]
[1762701127993,2.95468391,161.55,161.51,3.22485615]
[1762701128197,0.04468391,161.55,161.51,3.22485615]
[1762701131003,0.04468391,161.55,161.51,8.79785615]
[1762701131300,5.5695,161.62,161.52,3.18]
[1762701131803,5.5695,161.62,161.56,3.18]
[1762701132205,5.5688,161.64,161.57,3.18]
[1762701132502,0.04227574,161.62,161.59,3.22211338]
[1762701132697,0.04581607,161.62,161.59,3.22376557]
[1762701137200,2.95581607,161.62,161.59,0.04376557]
[1762701138009,0.04581607,161.62,161.59,0.04376557]
[1762701138408,0.04581607,161.62,161.59,3.22376557]
[1762701138600,0.04581607,161.62,161.59,0.04376557]
[1762701139901,0.04581607,161.62,161.59,3.22376557]
[1762701144114,2.95581607,161.62,161.59,0.04376557]
[1762701144917,0.04581607,161.62,161.59,3.22376557]
[1762701148320,2.95581607,161.62,161.59,0.04376557]
[1762701149420,2.95581607,161.62,161.55,3.18]
[1762701149421,2.91,161.6,161.55,3.18]
[1762701150519,2.91,161.6,161.56,0.04638025]
[1762701151021,8.4803,161.6,161.56,0.04638025]
[1762701151314,2.91,161.59,161.56,0.04638025]
[1762701151707,5.5703,161.6,161.56,0.04638025]
[1762701151918,8.6003,161.6,161.56,0.04638025]
[1762701152116,5.61531607,161.62,161.56,2.97638025]
[1762701154425,0.04581607,161.62,161.56,2.97638025]
[1762701155316,77.394,161.71,161.56,2.97638025]
[1762701155317,7.60496332,161.83,161.62,2.93]
[1762701155521,105.1373,161.88,161.63,2.93]
[1762701155522,3.03,161.78,161.63,2.93]
[1762701155722,3.03,161.78,161.64,2.93]
[1762701156110,3.03,161.75,161.64,2.93]
[1762701156425,0.04735907,161.71,161.68,0.04389705]
[1762701157221,8.64385907,161.71,161.68,0.04389705]
[1762701158527,3.03,161.7,161.68,0.04389705]
[1762701159531,5.61385907,161.71,161.68,0.04389705]
[1762701160025,0.04735907,161.71,161.68,0.04389705]
[1762701160423,3.07735907,161.71,161.68,0.04389705]
[1762701162231,0.04735907,161.71,161.68,2.97389705]
[1762701162831,0.04735907,161.71,161.68,0.04389705]
[1762701163225,3.07735907,161.71,161.68,0.04389705]
[1762701163420,3.03,161.69,161.68,0.04389705]
[1762701163619,75.3484,161.78,161.61,2.93]
[1762701163620,3.03,161.83,161.69,2.93]
[1762701164030,8.5934,161.8,161.71,2.93]
[1762701164627,0.04379002,161.77,161.74,0.04034721]
[1762701164826,3.07379002,161.77,161.74,0.04034721]
[1762701166733,3.15,161.75,161.74,0.04034721]
[1762701167229,5.5654,161.74,161.67,2.94]
[1762701168334,0.04500403,161.72,161.69,0.04485905]
[1762701169031,3.15,161.71,161.69,0.04485905]
[1762701169725,3.15,161.71,161.64,2.94]
[1762701170734,3.15,161.71,161.66,0.04146956]
[1762701171032,5.567,161.69,161.66,0.04146956]
[1762701171236,3.15,161.71,161.66,0.04146956]
[1762701172937,5.5668,161.7,161.66,0.04146956]
[1762701174139,5.5668,161.7,161.66,2.98146956]
[1762701175333,3.15,161.85,161.66,4.22146956]
[1762701175546,3.15,161.85,161.62,18.64]
[1762701175547,3.15,161.85,161.7,2.94]
[1762701175930,3.15,161.79,161.7,2.94]
[1762701176342,3.15,161.75,161.73,0.04694019]
[1762701176638,3.19545958,161.76,161.72,0.04544561]
[1762701176842,3.19437114,161.76,161.72,0.04544561]
[1762701177038,8.75907114,161.76,161.72,0.04544561]
[1762701178942,8.7152,161.75,161.72,0.04544561]
[1762701179136,5.5652,161.75,161.72,0.04544561]
[1762701179337,5.5652,161.75,161.72,2.98544561]
[1762701180032,8.7152,161.75,161.72,0.04544561]
[1762701180238,3.15,161.74,161.72,0.04544561]
[1762701181033,8.7154,161.74,161.72,0.04544561]
[1762701181237,3.15,161.73,161.72,0.04544561]
[1762701181440,3.15,161.73,161.63,2.94]
[1762701181943,5.5666,161.7,161.63,2.94]
[1762701182545,0.0408258,161.68,161.65,0.04609798]
[1762701182741,0.0408258,161.68,161.65,3.10609798]
[1762701183842,3.1308258,161.68,161.65,0.04609798]
[1762701184944,3.09,161.67,161.57,3.06]
[1762701185851,0.04513796,161.64,161.6,0.03949434]
[1762701186046,3.09,161.63,161.6,0.04354998]
[1762701187549,5.61374424,161.64,161.6,0.04354998]
[1762701187550,3.09,161.62,161.6,0.04354998]
[1762701187749,0.04484424,161.64,161.6,3.10354998]
[1762701189453,3.09,161.61,161.6,0.04354998]
[1762701189652,3.09,161.61,161.52,3.06]
[1762701190356,3.09,161.61,161.53,8.6323]
[1762701190566,0.04141319,161.59,161.56,3.06]
[1762701190753,3.09,161.66,161.58,3.06]
[1762701191750,3.13627341,161.64,161.6,0.04391145]
[1762701194660,3.13627341,161.64,161.6,3.10391145]
[1762701194957,0.04627341,161.64,161.6,3.10391145]
[1762701197755,0.04627341,161.64,161.61,5.5695]
[1762701198060,0.04627341,161.64,161.62,3.06]
[1762701203257,0.04627341,161.64,161.63,3.06]
[1762701203464,3.09,161.7,161.63,3.06]
[1762701203854,3.09,161.7,161.64,5.5686]
[1762701204069,3.09,161.76,161.63,3.06]
[1762701204463,3.1339054,161.71,161.68,0.04008086]
[1762701204760,18.64,161.83,161.71,3.06]
[1762701204761,3.09,161.79,161.71,3.06]
[1762701204961,18.52314156,161.83,161.71,3.06]
[1762701204962,21.61314156,161.83,161.71,3.06]
[1762701205158,3.09,161.82,161.71,3.06]
[1762701205360,3.09,161.82,161.72,5.5659]
[1762701205663,3.09,161.82,161.71,3.06]
[1762701205867,3.13081685,161.78,161.75,0.04348679]
[1762701206263,0.04081685,161.78,161.75,3.10348679]
[1762701207561,0.04081685,161.78,161.75,0.04348679]
[1762701208967,3.13081685,161.78,161.75,0.04348679]
[1762701210568,8.69491685,161.78,161.75,0.04348679]
[1762701210868,3.09,161.77,161.75,0.04348679]
[1762701211069,3.09,161.77,161.68,8.6271]
[1762701211568,3.09,161.76,161.68,3.06]
[1762701211969,2.89,161.73,161.7,0.0411991]
[1762701212166,2.89,161.72,161.7,0.0411991]
[1762701213476,2.89,161.71,161.7,0.0411991]
[1762701214170,2.89,161.7,161.6,2.89]
[1762701215076,0.0424049,161.67,161.63,0.03990094]
[1762701215275,2.9324049,161.67,161.63,0.03990094]
[1762701219576,8.4582,161.66,161.63,0.03990094]
[1762701219781,2.89,161.65,161.63,0.03990094]
[1762701220976,8.4586,161.65,161.63,0.03990094]
[1762701221176,2.89,161.64,161.63,0.03990094]
[1762701224579,2.89,161.63,161.57,2.89]
[1762701225178,8.4592,161.63,161.57,2.89]
[1762701225378,2.93664291,161.62,161.58,0.04545614]
[1762701226183,2.91,161.61,161.58,0.04545614]
[1762701226579,0.04664291,161.62,161.58,3.16545614]
[1762701226775,2.91,161.68,161.59,3.12]
[1762701227280,2.91,161.67,161.59,3.12]
[1762701227682,2.91,161.64,161.61,0.04280696]
[1762701227882,2.95324912,161.64,161.61,0.04365975]
[1762701229480,0.04324912,161.64,161.61,3.16365975]
[1762701232590,0.04324912,161.64,161.61,8.73325975]
[1762701232885,0.04324912,161.64,161.62,3.12]
[1762701233581,2.91,161.75,161.64,3.12]
[1762701234488,0.04586023,161.71,161.68,0.04171353]
[1762701234786,8.52226023,161.71,161.68,0.04171353]
[1762701234990,2.91,161.7,161.68,0.04171353]
[1762701235490,8.4767,161.7,161.68,0.04171353]
[1762701236387,0.04586023,161.71,161.68,0.04171353]
[1762701237386,2.95586023,161.71,161.68,0.04171353]
[1762701238089,8.52226023,161.71,161.68,0.04171353]
[1762701238692,2.91,161.81,161.69,4.36]
[1762701238894,2.91,161.81,161.7,3.12]
[1762701239793,2.91,161.81,161.65,7.6134588]
[1762701239794,0.04337155,161.77,161.75,3.12]
[1762701240096,0.04744641,161.78,161.75,3.12]
[1762701240296,0.04744641,161.78,161.75,3.1650444]
[1762701241089,2.95744641,161.78,161.75,0.0450444]
[1762701241691,2.91,161.76,161.67,3.12]
[1762701242586,0.04594337,161.73,161.7,0.03982678]
[1762701244190,3.10594337,161.73,161.7,0.03982678]
[1762701245090,0.04594337,161.73,161.7,2.93982678]
[1762701248186,8.67164337,161.73,161.7,0.03982678]
[1762701248588,3.06,161.72,161.7,0.03982678]
[1762701249590,8.67164337,161.73,161.7,0.03982678]
[1762701251594,3.10594337,161.73,161.7,0.03982678]
[1762701251790,3.10594337,161.73,161.57,25.9534588]
[1762701251791,3.10594337,161.73,161.63,2.9]
[1762701251991,3.06,161.73,161.63,2.9]
[1762701252996,8.67025391,161.7,161.66,0.04263912]
[1762701253195,8.67025391,161.7,161.66,0.04067301]
[1762701253885,0.04335391,161.7,161.66,2.94067301]
[1762701267604,5.14411145,161.7,161.66,2.94067301]
[1762701268007,2.08411145,161.7,161.66,2.94067301]
[1762701272009,3.18,161.69,161.66,2.94067301]
[1762701273307,3.18,161.69,161.66,0.04067301]
[1762701273506,3.18,161.67,161.66,0.04067301]
[1762701278816,3.18,161.66,161.59,3.18]
[1762701279019,3.18,161.63,161.59,3.18]
[1762701279716,3.18,161.63,161.59,3.22592539]
[1762701279717,3.22601601,161.63,161.59,3.22592539]
[1762701280315,3.18,161.62,161.59,0.04592539]
[1762701280816,3.18,161.62,161.59,3.22592539]
[1762701281231,0.04601601,161.63,161.59,3.22592539]
[1762701281412,3.22601601,161.63,161.59,3.22592539]
[1762701281719,3.22601601,161.63,161.59,0.04592539]
[1762701282820,8.79511601,161.63,161.59,0.04592539]